﻿Supplier,Net Amount,MCC,Type of Expenditure,Payment Date,Service Area
AMZNMktplace,146.36,5999,,03/05/2022,Technician
NAMESCO,33.48,4816,R4317,03/05/2022,Place-based Infrastructure fund
AMZNMktplace,12.48,5999,Equipment - Purchase,03/05/2022,Black Country Beats
123 REG LTD,23.98,5968,,03/05/2022,Revenues
GOOGLE  YouTubePremium,11.99,7829,,03/05/2022,Regional Adoption Agency
Amazon.co.uk 2D99M3F74,35.10,5969,,03/05/2022,Bert Williams Leisure Centre
AMZNMKTPLACE AMAZON.CO,56.23,5999,Client Allowances,03/05/2022,Youth Offending Team
AMZNMKTPLACE AMAZON.CO,197.75,5999,Client Allowances,03/05/2022,Youth Offending Team
Wix.com,102.00,5817,,03/05/2022,Technical Support
eBay O 25-08564-81614,4.89,5311,Materials,02/05/2022,Black Country Beats
WWW.CIPFA.ORG.UK,110.00,8699,,02/05/2022,Central Training
ENVATO 62259851,22.35,5815,R4317,02/05/2022,IGNITE Project
FACEBK RGVXXEKAR2,332.63,7311,R4317,02/05/2022,Communications & Marketing - General
EVENTPRO SOLUTIONS LTD,236.50,7394,Equipment - Hire,02/05/2022,West Midlands Growth Company
Google ADS9680351324,500.00,7311,R4317,02/05/2022,Communications & Marketing - General
A2BGoCarz,80.50,4121,Client Transport,02/05/2022,Children In Care 1
HM PASSPORT OFFICE,49.00,9399,Financial Assistance In Exceptional Circ,02/05/2022,LAC Team
DEED POLL DIRECT,15.00,5734,Financial Assistance In Exceptional Circ,02/05/2022,Lac Transitions
TESCO STORES 4758,18.30,5411,,02/05/2022,EIP Locality 8
A2BGoCarz,8.20,4121,Direct Work With Children,02/05/2022,Power2 Team
A2BGoCarz,5.70,4121,Direct Work With Children,02/05/2022,Power2 Team
A2BGoCarz,5.70,4121,Direct Work With Children,02/05/2022,Power2 Team
A2BGoCarz,6.80,4121,Direct Work With Children,02/05/2022,Power2 Team
A2BGoCarz,9.40,4121,Direct Work With Children,02/05/2022,Power2 Team
A2BGoCarz,8.00,4121,Direct Work With Children,02/05/2022,Power2 Team
A2BGoCarz,8.10,4121,Direct Work With Children,02/05/2022,Power2 Team
A2BGoCarz,4.40,4121,Direct Work With Children,02/05/2022,Power2 Team
A2BGoCarz,6.90,4121,Direct Work With Children,02/05/2022,Power2 Team
ASDA GROCERIES ONLINE,24.67,5411,Provisions (Not for resale),02/05/2022,Ernest Bold Court
ASDA GROCERIES ONLINE,44.76,5411,Provisions (Not for resale),02/05/2022,Ernest Bold Court
ARGOS LTD,25.00,5310,Client Allowances,02/05/2022,LAC Transitions Team
ARGOS LTD,25.00,5310,Client Allowances,02/05/2022,LAC Transitions Team
KFC,9.26,5814,Direct Work With Children,02/05/2022,LAC Transitions Team
INDEED TEL+35312545907,18.54,7399,,02/05/2022,Strategic ICTS (ICT Serv Budget)
DMARC ANALYZER,189.04,5817,,02/05/2022,Strategic ICTS (ICT Serv Budget)
SSE ELECTRICITY,8.33,4900,Accommodation Costs,02/05/2022,LAC Transitions Team
SMART TOP UP,8.33,4900,Accommodation Costs,02/05/2022,LAC Transitions Team
ASDA GROCERIES ONLINE,-7.40,5411,Provisions (Not for resale),02/05/2022,Bradley Resource Centre
ASDA GROCERIES ONLINE,272.34,5411,Provisions (Not for resale),02/05/2022,Bradley Resource Centre
Airpay 50487068-A2B Go,-8.25,4121,,02/05/2022,LAC Transitions Team
BRISTOW AND SUTOR,.00,7399,VAT,02/05/2022,Revenues
BRISTOW AND SUTOR,.00,7399,VAT,02/05/2022,Revenues
BRISTOW AND SUTOR,.00,7399,VAT,02/05/2022,Revenues
AMZNMKTPLACE AMAZON.CO,71.40,5999,,02/05/2022,Aldersley Leisure Village
AMZNMKTPLACE AMAZON.CO,56.10,5999,,02/05/2022,Aldersley Leisure Village
MFG FORDHOUSES,104.34,5541,,02/05/2022,Aldersley Leisure Village
AMZNMKTPLACE AMAZON.CO,37.45,5999,,02/05/2022,Aldersley Leisure Village
AMZNMKTPLACE AMAZON.CO,52.10,5999,,02/05/2022,Aldersley Leisure Village
PAYPAL  OFFICEDEPOT,57.59,7399,,02/05/2022,Bert Williams Leisure Centre
ARGOS LTD,305.79,5310,Client Allowances,02/05/2022,LAC Transitions Team
A2BGoCarz,480.00,4121,Client Transport,02/05/2022,LAC Team
A2BGoCarz,13.20,4121,Client Transport,02/05/2022,LAC Team
AMZNMKTPLACE AMAZON.CO,10.76,5999,Client Allowances,02/05/2022,Youth Offending Team
AMZNMKTPLACE AMAZON.CO,24.16,5999,Client Allowances,02/05/2022,Youth Offending Team
A2BGoCarz,144.00,4121,Financial Assistance In Exceptional Circ,02/05/2022,Children In Care 1
WWW.AVANTIWESTCOAST.CO,60.00,4112,Client Transport,02/05/2022,LAC Transitions Team
WWW.SCREWFIX.COM,50.13,5211,Equipment - Purchase,02/05/2022,The Maltings
WWW.SCREWFIX.COM,19.98,5211,Equipment - Purchase,02/05/2022,Business Support Services
TOOLSTATION UK,124.95,5251,Equipment - Purchase,02/05/2022,Business Support Services
AMZNMKTPLACE AMAZON.CO,11.65,5999,Equipment - Purchase,02/05/2022,Business Support Services
ARGOS LTD,-222.95,5310,,02/05/2022,CIN/CP Social Work Unit - Area 7
ARGOS LTD,162.95,5310,,02/05/2022,CIN/CP Social Work Unit - Area 7
ARGOS LTD,222.95,5310,,02/05/2022,CIN/CP Social Work Unit - Area 7
ARGOS LTD,495.95,5310,,02/05/2022,CIN/CP Social Work Unit - Area 7
ROYAL BK OF SCOTLAND,50.00,6011,,02/05/2022,CIN/CP Social Work Unit - Area 7
ARGOS LTD,150.00,5310,Equipment - Purchase,02/05/2022,EIP Locality 3
AMZNMktplace,40.33,5999,Equipment - Purchase,02/05/2022,EIP Locality 2
WICKES WOLVERHAMPTON,36.00,5211,,02/05/2022,Cleaning of Buildings - General
AMZNMktplace,11.24,5999,Catering,02/05/2022,Civic Centre Catering
OAKLAND,169.17,7011,Section 17,02/05/2022,CAT
POST OFFICE,250.00,6011,,02/05/2022,CIN/CP Social Work Unit - Area 8
HM PASSPORT OFFICE,54.00,9399,Section 17,02/05/2022,Court Team
HM PASSPORT OFFICE,54.00,9399,Section 17,02/05/2022,Court Team
ARGOS LTD,37.46,5310,Section 17,02/05/2022,CIN/CP Social Work Unit - Area 8
ARGOS LTD,316.66,5310,Client Allowances,02/05/2022,LAC Transitions Team
ARGOS LTD,4.17,5310,Client Allowances,02/05/2022,LAC Transitions Team
PLANET APPLIANCE,20.83,5399,Client Allowances,02/05/2022,LAC Transitions Team
LONDON BOROUGH OF NEWH,35.00,9399,R6403,29/04/2022,LAC Transitions Team
POUNDLAND LTD 1463,4.00,5310,Direct Work With Children,29/04/2022,LAC Transitions Team
AMZNMKTPLACE AMAZON.CO,20.82,5999,Stationery,29/04/2022,Delivery & OCE Development
ROYAL BK OF SCOTLAND,250.00,6011,Direct Work With Children,29/04/2022,Power2 Team
Amazon.co.uk 2P3VO1DZ4,32.76,5969,Books,29/04/2022,Archives
NoteMachine ATM,100.00,6011,Client Allowances,29/04/2022,LAC Transitions Team
CITIZENCARD,25.00,8699,Client Allowances,29/04/2022,LAC Transitions Team
WAYFAIR UK3735804444,249.99,5712,Client Allowances,29/04/2022,LAC Transitions Team
W M MORRISONS.COM,69.13,5411,Materials,29/04/2022,Discretionary Fund
SEVERN TRENT WATER,100.30,4900,Accommodation Costs,29/04/2022,LAC Transitions Accommodation
Amazon.co.uk 2P62O5DO4,25.00,5969,Equipment - Purchase,29/04/2022,Bradley Resource Centre
NEW LOOK INTERNET,-22.50,5621,Client Allowances,29/04/2022,LAC Transitions Team
3NIVERSITY OF BIRMINGH,4.25,8220,Subsistence,29/04/2022,Mayoral Expenses
NATWEST BANK,180.00,6011,Financial Assistance In Exceptional Circ,29/04/2022,LAC Team
NATWEST BANK,500.00,6011,Client Allowances,29/04/2022,LAC Transitions Accommodation
NATWEST BANK,500.00,6011,Client Allowances,29/04/2022,LAC Transitions Accommodation
WEST MIDLANDS TRAV,55.00,4131,Section 17,29/04/2022,CIN/CP Social Work Unit - Area 7
WEST MIDLANDS TRAV,55.00,4131,Section 17,29/04/2022,CIN/CP Social Work Unit - Area 7
WEST MIDLANDS TRAV,85.00,4131,Section 17,29/04/2022,CIN/CP Social Work Unit - Area 7
NoteMachine ATM,50.00,6011,Electricity,29/04/2022,EIP Locality 1
NoteMachine ATM,100.00,6011,Section 17,29/04/2022,CIN/CP Social Work Unit - Area 1
WWW.PRIMATEL.CO.UK,53.46,5111,Stationery,29/04/2022,Global Budgets
MFG CLAREGATE,8.24,5541,Equipment - Purchase,29/04/2022,Bradley Resource Centre
POLY POSTAL PACKAGING,80.00,5200,Equipment - Purchase,29/04/2022,Environmental Crime and Consumer Protect
ENJOY WOLVERHAMPTON,101.30,5399,Equipment - Purchase,29/04/2022,Environmental Protection
ARGOS LTD,-43.98,5310,Section 17,29/04/2022,CIN/CP Social Work Unit - Area 6
NEXT DIRECTORY,36.66,5651,Equipment - Purchase,29/04/2022,School Crossing Patrol
OAKLAND,169.17,7011,Section 17,29/04/2022,CAT
BEVERLEY HOTEL LTD - T,90.00,7011,,29/04/2022,CIN/CP Social Work Unit - Area 8
Dunelm,66.67,5712,Equipment - Purchase,29/04/2022,IGNITE Project
PLANET APPLIANCE,145.83,5399,Client Allowances,29/04/2022,LAC Transitions Team
AMZNMktplace,19.50,5999,,29/04/2022,Technician
Amazon.co.uk 2P1UD6D74,17.46,5969,,29/04/2022,Waste Coll & Recycling Serv General
WWW.SCREWFIX.COM,46.99,5211,,29/04/2022,Waste Coll & Recycling Serv General
iZ  BEATSABAR MUSI,160.00,8398,Equipment - Hire,29/04/2022,Youth Offending Team
NAMESCO,31.99,4816,R4317,29/04/2022,Communications & Marketing - General
HM PASSPORT OFFICE,49.00,9399,Financial Assistance In Exceptional Circ,29/04/2022,LAC Team
WILKO RETAIL LIMITED,32.22,5399,Client Allowances,29/04/2022,LAC Transitions Accommodation
SP COLLINS,102.91,5942,Books,29/04/2022,Music Support Team
A2BGoCarz,8.30,4121,Direct Work With Children,29/04/2022,Power2 Team
A2BGoCarz,8.30,4121,Direct Work With Children,29/04/2022,Power2 Team
MCDONALDS 620,6.58,5812,Client Allowances,29/04/2022,LAC Transitions Team
DUNELM (SOFT FURNISHIN,22.00,5714,Accommodation Costs,29/04/2022,LAC Transitions Accommodation
Dulux Decorator Centre,52.94,5198,Materials,28/04/2022,Black Country Beats
BOOTSTRAP THEMES,33.63,7372,R4317,28/04/2022,Communications & Marketing - General
NAMESCO,16.99,4816,R4317,28/04/2022,Communications & Marketing - General
MUSEUMS ASCTN,40.00,5971,Training Expenses,28/04/2022,Audience Development
LUL TICKET MACHINE,37.80,4112,,28/04/2022,Visitor Economy - Development
A2BGoCarz,5.70,4121,Direct Work With Children,28/04/2022,Power2 Team
SAINSBURYS S/MKTS,10.80,5411,,28/04/2022,Coroners
Argos Wednesfield,212.95,5310,,28/04/2022,Coroners
UKN00024,100.00,6011,Accommodation Costs,28/04/2022,LAC Transitions Accommodation
B&M 497 - HS WOLVES,8.00,5399,Accommodation Costs,28/04/2022,LAC Transitions Accommodation
MCDONALDS,7.62,5814,Independant Living Allowance,28/04/2022,LAC Transitions Team
CITY OF WOLVERHAMPTON,17.00,9399,R6403,28/04/2022,LAC Transitions Team
POST OFFICE COUNTER,2.35,9402,Comms - Postage,28/04/2022,LAC Transitions Team
SCREWFIX DIR LTD,-39.99,5211,Protective Clothing,28/04/2022,Car Parks Operational Staff
Airpay 50487068-A2B Go,6.87,4121,Client Allowances,28/04/2022,LAC Transitions Team
123 REG LTD,9.99,5968,Computing - Purchase of Software,28/04/2022,Technical Support
B & Q 1243,15.12,5200,Materials,28/04/2022,Street Lighting Maintenance
Dunelm,147.95,5712,Equipment - Purchase,28/04/2022,Bradley Resource Centre
AMZNMktplace,33.13,5999,Equipment - Purchase,28/04/2022,Bradley Resource Centre
POST OFFICE,50.00,6011,Client Allowances,28/04/2022,LAC Transitions Team
COMBINED COURT,183.00,9222,Services - Fees and Charges,28/04/2022,Children In Care 1
COMBINED COURT,183.00,9222,Services - Fees and Charges,28/04/2022,LAC Team
COMBINED COURT,183.00,9222,Services - Fees and Charges,28/04/2022,LAC Team
LOYD 89 CHURCH STREET,100.00,6011,Provisions (Not for resale),28/04/2022,Ernest Bold Court
CARVERS,4.04,5211,,28/04/2022,Cleaning of Buildings - General
SSE ELECTRICITY,20.00,4900,Section 17,28/04/2022,CIN/CP Social Work Unit - Area 8
5480178-0422,5.56,4121,Client Transport,28/04/2022,CIN/CP Social Work Unit - Area 8
WICKES WOLVERHAMPTON,12.29,5211,Equipment - Purchase,28/04/2022,Community Enablement
thetrainline.com,47.33,4112,,28/04/2022,Head of Service - CINCP
thetrainline.com,77.19,4112,,28/04/2022,Head of Service - CINCP
thetrainline.com,67.41,4112,,28/04/2022,Head of Service - CINCP
ARGOS LTD,346.95,5310,Furniture,28/04/2022,EIP Locality 1
MARKS&SPENCER PLC SACA,5.00,5411,Catering,28/04/2022,Civic Centre Catering
ASDA GROCERIES ONLINE,249.59,5411,Provisions (Not for resale),28/04/2022,Duke Street Bungalows
WWW.SCREWFIX.COM,25.79,5211,Protective Clothing,28/04/2022,Food and Health & Safety
HOME BARGAINS,24.55,5251,Cleaning Supplies and Materials,27/04/2022,Specialist Support Service - North
Hobbycraft,60.00,5970,Materials,27/04/2022,Specialist Support Service - North
CardtronicsUK,133.33,6011,Client Allowances,27/04/2022,LAC Transitions Team
BAKER ROSS,69.13,5970,Materials,27/04/2022,Education and Learning
KITE PACKAGING LIMITED,42.78,5399,Materials,27/04/2022,Education and Learning
LAVAZZA PRO,421.19,5441,Services - Supplies & Services to users,27/04/2022,Future People
301-2831,126.41,5200,Direct Work With Children,27/04/2022,Power2 Team
A2BGoCarz,9.70,4121,Direct Work With Children,27/04/2022,Power2 Team
CITY OF WOLVERHAMPTON,40.00,9399,Stationery,27/04/2022,Legal Services
A2BGoCarz,6.40,4121,Direct Work With Children,27/04/2022,Power2 Team
HOME BARGAINS,78.07,5251,,27/04/2022,Coroners
WWW.SCREWFIX.COM,35.82,5211,Equipment - Purchase,27/04/2022,Cemeteries
B&M 728 BENTLEY BRIDGE,20.00,5399,Accommodation Costs,27/04/2022,LAC Transitions Accommodation
EMOTIONS CARDS AND GIF,13.00,5947,Independant Living Allowance,27/04/2022,LAC Transitions Team
AMZNMKTPLACE AMAZON.CO,46.27,5999,Direct Work With Children,27/04/2022,LAC Transitions Team
ABC CARS GROUP LIM,18.00,4121,Public Transport,27/04/2022,LAC Transitions Team
ABC CARS GROUP LIM,8.40,4121,Public Transport,27/04/2022,LAC Transitions Team
Trainline.COM,23.39,4112,,27/04/2022,Strategic ICTS (ICT Serv Budget)
HMCTS BIRMINGHAMCONF11,81.00,9222,Services - Fees and Charges,27/04/2022,Mental Health Assessment & Care Mgmt
WWW.SCREWFIX.COM,62.99,5211,Protective Clothing,27/04/2022,Car Parks Operational Staff
W M MORRISONS.COM,204.54,5411,Provisions (Not for resale),27/04/2022,Bradley Resource Centre
IDCBAND.COM,90.93,2741,,27/04/2022,Revenues
TVLICENSING.CO.UK,159.00,7392,Services - General Licences,27/04/2022,Bradley Resource Centre
SPECSAVERSEVOUGB-,107.62,8043,,27/04/2022,HR Advice
Amazon.co.uk 2P2Y67594,17.30,5969,,27/04/2022,Bert Williams Leisure Centre
X BRAND STOCK SOLUTION,414.17,4225,Client Allowances,27/04/2022,LAC Transitions Team
DVLA DRIVING LICENSE,28.33,9399,Client Allowances,27/04/2022,LAC Transitions Team
SAINSBURYS.CO.UK,93.73,5411,Provisions (Not for resale),27/04/2022,Discretionary Fund
ALDI 78 772,23.39,5411,Materials,27/04/2022,Creative Studies Delivery Area
BEVERLEY HOTEL LTD - T,100.00,7011,Section 17,27/04/2022,MASH
WWW.WOLVERHAMPTON.GOV.,120.00,9399,Client Allowances,27/04/2022,LAC Transitions Accommodation
VOUCHER EXPRESS,40.00,7399,Section 17,27/04/2022,CIN/CP Social Work Unit - Area 8
CITY OF WOLVERHAMPTON,11.00,9399,Fees,27/04/2022,CIN/CP Social Work Unit - Area 8
CITY OF WOLVERHAMPTON,17.00,9399,Fees,27/04/2022,CIN/CP Social Work Unit - Area 8
AMZNMktplace,84.95,5999,Cleaning Supplies and Materials,27/04/2022,Blakenhall Commty & Healthy Living Ctr
Amazon.co.uk 2P8J265S4,11.36,5969,Books,27/04/2022,Global Budgets
Amazon.co.uk 2P30G25M4,14.74,5969,Books,27/04/2022,Global Budgets
LIDL GB BILSTON,15.07,5411,Provisions (Not for resale),27/04/2022,Ernest Bold Court
WWW.OLDHAM.GOV.UK,35.00,9399,Stationery,27/04/2022,Legal Services
Trainline.COM,173.02,4112,Public Transport,26/04/2022,Safeguarding Children
ADOBE STOCK,19.99,5734,Subscriptions,26/04/2022,Communications & Marketing - General
CARD FACTORY,1.29,5947,Independant Living Allowance,26/04/2022,LAC Transitions Team
Amazon.co.uk 2P5CX2GV4,23.79,5969,,26/04/2022,Strategic ICTS (ICT Serv Budget)
WORKPLACE PRODUCTS,290.33,5046,,26/04/2022,Bradley Resource Centre
WWW.ASE.ORG.UK,140.00,8299,Subscriptions,26/04/2022,LEP - Leadership & Management Programme
INSTITUTELI,130.00,8699,Services - Professional Fees,26/04/2022,Private Hire Vehicles
HOMEBASE LTD 103,30.90,5200,Materials,26/04/2022,Street Lighting Maintenance
OAKLAND,999.00,7011,Accommodation Costs,26/04/2022,Destitute Plus
OAKLAND,36.00,7011,Accommodation Costs,26/04/2022,Destitute Plus
OAKLAND,36.00,7011,Accommodation Costs,26/04/2022,Destitute Plus
OAKLAND,999.00,7011,Accommodation Costs,26/04/2022,Destitute Plus
AMZ Universal Product,-23.70,5999,Catering,26/04/2022,Bradley Resource Centre
NoteMachine ATM,100.00,6011,Client Allowances,26/04/2022,LAC Transitions Team
APPLE.COM/BILL,9.99,5815,,26/04/2022,Managing Director
ASDA GROCERIES ONLINE,-.14,5411,Provisions (Not for resale),26/04/2022,Upper Pendeford Farm Childrens Home
ASDA GROCERIES ONLINE,170.06,5411,Provisions (Not for resale),26/04/2022,Upper Pendeford Farm Childrens Home
DISCLOSURE & BARRING,13.00,9399,Subscriptions,26/04/2022,Upper Pendeford Farm Childrens Home
AMZNMktplace,24.75,5999,Equipment - Purchase,26/04/2022,Wolverhampton Indoor and Open Market
SP RBLI,"1,571.51",5399,Materials,26/04/2022,Wolverhampton Indoor and Open Market
CUMMINGS BROTHERS LOCK,10.50,7399,,26/04/2022,Cleaning of Buildings - General
ASDA GROCERIES ONLINE,109.88,5411,Provisions (Not for resale),26/04/2022,Duke Street Bungalows
AMZNMktplace,9.98,5999,Equipment - Purchase,26/04/2022,Global Budgets
CITY OF WOLVERHAMPTON,16.00,9399,Services - Fees and Charges,26/04/2022,Legal Services
TESCO STORES 4758,4.80,5411,Catering,26/04/2022,Civic Centre Catering
SumUp   United Flags L,81.95,5999,Hospitality,26/04/2022,Members Expenses
WWW.SCREWFIX.COM,64.75,5211,Materials,25/04/2022,Technician
HOME BARGAINS FESTIVAL,2.65,5251,Materials,25/04/2022,Black Country Beats
Google ADS5477893156,276.45,7311,R4317,25/04/2022,Regional Adoption Agency
FREEPIK & FLATICON,8.66,7333,Subscriptions,25/04/2022,Communications & Marketing - General
INTERFLORA BRITISH UNI,44.00,5992,Gratuities,25/04/2022,Fostering Team & Allowances
Hotel at Booking.com,68.33,7011,Accommodation Costs,25/04/2022,Fostering Team
thetrainline.com,66.80,4112,Client Transport,25/04/2022,Fostering Team
WWW.AVANTIWESTCOAST.CO,119.70,4112,Public Transport,25/04/2022,Children In Care 1
GEAR4MUSIC,241.48,5733,Direct Work With Children,25/04/2022,Power2 Team
A2BGoCarz,7.20,4121,Direct Work With Children,25/04/2022,Power2 Team
Amazon.co.uk 2P6HV2NI4,22.49,5969,Direct Work With Children,25/04/2022,Power2 Team
A2BGoCarz,8.10,4121,Direct Work With Children,25/04/2022,Power2 Team
A2BGoCarz,13.50,4121,Direct Work With Children,25/04/2022,Power2 Team
A2BGoCarz,8.10,4121,Direct Work With Children,25/04/2022,Power2 Team
A2BGoCarz,12.20,4121,Direct Work With Children,25/04/2022,Power2 Team
A2BGoCarz,8.10,4121,Direct Work With Children,25/04/2022,Power2 Team
A2BGoCarz,6.80,4121,Direct Work With Children,25/04/2022,Power2 Team
ASDA GROCERIES ONLINE,-.03,5411,Provisions (Not for resale),25/04/2022,Ernest Bold Court
ASDA GROCERIES ONLINE,66.59,5411,Provisions (Not for resale),25/04/2022,Ernest Bold Court
ARGOS LTD,25.00,5310,Client Allowances,25/04/2022,LAC Transitions Accommodation
SMART TOP UP,20.00,4900,Independant Living Allowance,25/04/2022,LAC Transitions Team
AMZNMktplace,41.66,5999,Direct Work With Children,25/04/2022,LAC Transitions Team
ALDI 73 772,25.76,5411,Direct Work With Children,25/04/2022,LAC Transitions Team
ABC CARS GROUP LIM,6.20,4121,Public Transport,25/04/2022,LAC Transitions Team
ABC CARS GROUP LIM,6.10,4121,Public Transport,25/04/2022,LAC Transitions Team
ABC CARS GROUP LIM,5.70,4121,Public Transport,25/04/2022,LAC Transitions Team
NEWSTOP,3.30,5411,Direct Work With Children,25/04/2022,LAC Transitions Team
B&M 728 BENTLEY BRIDGE,7.99,5399,Equipment - Purchase,25/04/2022,LAC Transitions Team
B&M 728 BENTLEY BRIDGE,78.56,5399,TPP - Carer Support Service,25/04/2022,LAC Transitions Team
123 REG LTD,71.98,5968,,25/04/2022,Strategic ICTS (ICT Serv Budget)
CHERWELL CARS,58.80,4121,,25/04/2022,Mental Health Assessment & Care Mgmt
WWW.SCREWFIX.COM,39.99,5211,Protective Clothing,25/04/2022,Car Parks Operational Staff
AMZNMktplace,20.81,5999,Equipment - Purchase,25/04/2022,Black Country Beats
Amazon.co.uk 2P0739JS4,49.99,5969,Equipment - Purchase,25/04/2022,Youth Offending Team
B&M 663 - MANDER,12.95,5399,Materials,25/04/2022,Winter Maintenance
AMZNMktplace,7.09,5999,Client Allowances,25/04/2022,LAC Transitions Team
POST OFFICE COUNTER,124.05,9402,,25/04/2022,Regional Adoption Agency
ARGOS LTD,12.99,5310,,25/04/2022,Bert Williams Leisure Centre
ARGOS LTD,12.99,5310,,25/04/2022,Bert Williams Leisure Centre
AMZNMktplace,82.16,5999,Equipment - Purchase,25/04/2022,Fostering Team
AMZNMktplace,82.16,5999,Equipment - Purchase,25/04/2022,Fostering Team
AMZNMKTPLACE AMAZON.CO,35.04,5999,Equipment - Health and Safety,25/04/2022,Upper Pendeford Farm Childrens Home
WWW.AVANTIWESTCOAST.CO,69.80,4112,Client Transport,25/04/2022,LAC Transitions Team
HM PASSPORT OFFICE,49.00,9399,Financial Assistance In Exceptional Circ,25/04/2022,Children In Care 1
POST OFFICE,20.00,6011,,25/04/2022,LAC Transitions Team
POST OFFICE,10.00,6011,,25/04/2022,LAC Transitions Team
TIPPERS WOLVERHAMPTON,49.79,5072,,25/04/2022,Cleaning of Buildings - General
ROYAL BK OF SCOTLAND,30.00,6011,Section 17,25/04/2022,CIN/CP Social Work Unit - Area 3
Amazon.co.uk 2P5AV7094,30.83,5969,,25/04/2022,Fleet Management
A2BGoCarz,190.80,4121,Client Transport,25/04/2022,COVID-19 Holiday Activity Fund (HAF)
A2BGoCarz,48.00,4121,Section 17,25/04/2022,CIN/CP Social Work Unit - Area 8
A2BGoCarz,145.20,4121,Client Transport,25/04/2022,COVID-19 Holiday Activity Fund (HAF)
UBER    EATS,8.71,5812,,22/04/2022,LAC Transitions Team
Mayfair Carpets,333.33,5713,Client Allowances,22/04/2022,LAC Transitions Team
MARK BUTLER GOLF ACADE,7.00,5655,Equipment - Hire,22/04/2022,Youth Offending Team
WWW.PIZZAHUT.CO.UK,16.23,5814,Catering,22/04/2022,Corporate Parenting
CURRYS ONLINE,179.00,5732,Client Allowances,22/04/2022,LAC Transitions Team
WWW.WOLVERHAMPTON.GOV.,90.00,9399,Hire of Vehicles,22/04/2022,Fleet Management
SumUp   Fit directory,40.00,8299,Direct Work With Children,22/04/2022,Power2 Team
AMZNMKTPLACE AMAZON.CO,9.41,5999,Direct Work With Children,22/04/2022,Power2 Team
AMZNMKTPLACE AMAZON.CO,15.37,5999,Direct Work With Children,22/04/2022,Power2 Team
A2BGoCarz,8.30,4121,Direct Work With Children,22/04/2022,Power2 Team
A2BGoCarz,6.70,4121,Direct Work With Children,22/04/2022,Power2 Team
A2BGoCarz,8.00,4121,Direct Work With Children,22/04/2022,Power2 Team
A2BGoCarz,8.30,4121,Direct Work With Children,22/04/2022,Power2 Team
HOME BARGAINS,3.32,5251,Client Allowances,22/04/2022,LAC Transitions Accommodation
SumUp   Colin caddick,66.35,5399,Accommodation Costs,22/04/2022,LAC Transitions Accommodation
iZ  D   K TRADING,4.79,5999,Accommodation Costs,22/04/2022,LAC Transitions Accommodation
AMZNMktplace,59.98,5999,Furniture,22/04/2022,LAC Transitions Team
123 REG LTD,69.56,4816,,22/04/2022,Strategic ICTS (ICT Serv Budget)
OAKLAND,737.50,7011,Accommodation Costs,22/04/2022,Destitute Plus
OAKLAND,737.50,7011,Accommodation Costs,22/04/2022,Destitute Plus
Hotel on Booking.com,50.42,7011,Accommodation Costs,22/04/2022,Mental Health Assessment & Care Mgmt
Hotel at Booking.com,39.18,7011,Accommodation Costs,22/04/2022,Mental Health Assessment & Care Mgmt
AMZNMktplace,363.74,5999,Equipment - Purchase,22/04/2022,Black Country Beats
W M MORRISONS.COM,304.63,5411,Provisions (Not for resale),22/04/2022,Bradley Resource Centre
CUMMINGS BROTHERS LOCK,10.00,7399,Equipment - Purchase,22/04/2022,Specialist Support Service - North
ZTL DRIVER 8 LTD,20.20,4121,Client Transport,22/04/2022,LAC Transitions Team
CMT UK LTD TAXI FARE,20.00,4121,Client Transport,22/04/2022,LAC Transitions Team
CUMMINGS BROTHERS LOCK,6.00,7399,Accommodation Costs,22/04/2022,LAC Transitions Accommodation
AMZNMKTPLACE AMAZON.CO,16.03,5999,Accommodation Costs,22/04/2022,LAC Transitions Accommodation
thetrainline.com,379.22,4112,,22/04/2022,Regional Adoption Agency
WWW.AVANTIWESTCOAST.CO,29.70,4112,Client Transport,22/04/2022,LAC Transitions Team
AMZNMKTPLACE AMAZON.CO,10.99,5999,,22/04/2022,Upper Pendeford Farm Childrens Home
AMZNMktplace,32.99,5999,Books,22/04/2022,Discretionary Fund
AMZNMktplace,131.96,5999,Books,22/04/2022,Foundation Studies
AMZNMktplace,164.95,5999,Books,22/04/2022,Discretionary Fund
B&M 497 - HS WOLVES,69.57,5399,Client Allowances,22/04/2022,LAC Transitions Accommodation
PASS  PORTABLE APPLIAN,79.97,8734,Equipment - Purchase,22/04/2022,Food and Health & Safety
CINEWORLD,30.88,7832,,22/04/2022,Upper Pendeford Farm Childrens Home
ARRIVA UK BUS,9.20,4131,Section 17,22/04/2022,Court Team
Trainline.COM,12.13,4112,Section 17,22/04/2022,Court Team
thetrainline.com,12.13,4112,Section 17,22/04/2022,Court Team
Dulux Decorator Centre,404.91,5198,Materials,21/04/2022,Black Country Beats
SAINSBURYS S/MKTS,24.16,5411,Materials,21/04/2022,Place-based Infrastructure fund
A2BGoCarz,288.00,4121,Client Transport,21/04/2022,Court Team
QUARTER HOUSE 51-53,75.00,6011,Client Allowances,21/04/2022,LAC Transitions Team
QUARTER HOUSE 51-53,50.00,6011,Client Allowances,21/04/2022,LAC Transitions Team
B&M 497 - HS WOLVES,13.33,5399,Client Allowances,21/04/2022,LAC Transitions Accommodation
Mayfair Carpets,150.00,5713,Furniture,21/04/2022,LAC Transitions Team
Mayfair Carpets,308.00,5713,Financial Assistance In Exceptional Circ,21/04/2022,LAC Transitions Team
Mayfair Carpets,243.00,5713,Equipment - Purchase,21/04/2022,LAC Transitions Team
SAINSBURYS S/MKTS,5.50,5411,Direct Work With Children,21/04/2022,LAC Transitions Team
123 REG LTD,71.98,5968,,21/04/2022,Strategic ICTS (ICT Serv Budget)
AMAZON OXFORD LTD,367.50,7011,Accommodation Costs,21/04/2022,Destitute Plus
ONEBELOW,5.83,5411,Equipment - Purchase,21/04/2022,Car Parks Operational Staff
COZENS & COLE LTD,50.56,5251,Equipment - Purchase,21/04/2022,Civic Centre Repairs & Maintenance
AMZNMktplace,12.49,5999,Computing - Consumables,21/04/2022,Strategic ICTS (ICT Serv Budget)
BARCLAYS,120.00,6011,Accommodation Costs,21/04/2022,LAC Transitions Accommodation
COSTA COFFEE 43040675,4.96,5814,Client Allowances,21/04/2022,LAC Transitions Team
FLEXISPOT LIMITED,259.98,5712,,21/04/2022,Fostering Team & Allowances
Amazon.co.uk 2P8G89CZ4,18.56,5969,,21/04/2022,Bert Williams Leisure Centre
ARGOS LTD,12.99,5310,,21/04/2022,Bert Williams Leisure Centre
POST OFFICE COUNTER,49.33,9402,Client Allowances,21/04/2022,LAC Transitions Team
WEST MIDLANDS TRAV,55.00,4131,Section 17,21/04/2022,CIN/CP Social Work Unit - Area 7
ARGOS LTD,43.98,5310,Section 17,21/04/2022,CIN/CP Social Work Unit - Area 6
AMZNMktplace,11.65,5999,Catering,21/04/2022,Art Gallery Tea Room
Amazon.co.uk 2P5VN7O34,30.80,5969,Equipment - Purchase,21/04/2022,School Crossing Patrol
SAPHARI,3.79,5812,,21/04/2022,Upper Pendeford Farm Childrens Home
SAPHARI,144.88,5812,,21/04/2022,Upper Pendeford Farm Childrens Home
OAKLAND,353.00,7011,No Recourse to Public Funds,21/04/2022,NRPF
AMZNMktplace,275.00,5999,Computing - Consumables,20/04/2022,Strategic ICTS (ICT Serv Budget)
Trainline.COM,67.41,4112,Public Transport,20/04/2022,Revenues
IKEA LTD SHOP ONLINE,-24.00,5712,Equipment - Purchase,20/04/2022,Bradley Resource Centre
CITY OF WOLVERHAMPTON,16.00,9399,Services - Fees and Charges,20/04/2022,Legal Services
OAKLAND,50.00,7011,Section 17,20/04/2022,MASH
NATIONWIDE,170.00,6011,No Recourse to Public Funds,20/04/2022,NRPF
NATIONWIDE,150.00,6011,No Recourse to Public Funds,20/04/2022,NRPF
CARVERS,302.12,5211,Materials,20/04/2022,Black Country Beats
POST OFFICE COUNTER,1.96,9402,Client Allowances,20/04/2022,LAC Transitions Team
Recyk Appliances,-40.00,7629,Client Allowances,20/04/2022,LAC Transitions Team
Recyk Appliances,416.67,7629,Client Allowances,20/04/2022,LAC Transitions Team
Mayfair Carpets,350.00,5713,Client Allowances,20/04/2022,LAC Transitions Team
CardtronicsUK,158.33,6011,Client Allowances,20/04/2022,LAC Transitions Team
Google ADS3317949200,500.00,7311,R4317,20/04/2022,WV Active Business Support
FACEBK MYUGJDPAR2,500.00,7311,R4317,20/04/2022,Communications & Marketing - General
WWW.UPPERHATTONSSTABLE,32.80,7929,Direct Work With Children,20/04/2022,Power2 Team
ROYAL BK OF SCOTLAND,60.00,6011,Client Allowances,20/04/2022,LAC Transitions Team
B & Q 1193,11.00,5200,Fixtures and Fittings - Purchases,20/04/2022,Children & Family Contact Services
CARD FACTORY,.99,5947,Direct Work With Children,20/04/2022,LAC Transitions Team
CARD FACTORY,3.49,5947,Direct Work With Children,20/04/2022,LAC Transitions Team
EE TOPUP  VESTA,30.00,4814,,20/04/2022,Strategic ICTS (ICT Serv Budget)
IKEA LTD SHOP ONLINE,27.08,5712,Equipment - Purchase,20/04/2022,Black Country Beats
WWW.METROIMAGING.CO.UK,44.21,2741,Services - Professional Fees,20/04/2022,Black Country Beats
AMZNMktplace,79.04,5999,,19/04/2022,Central Training
ASDA GROCERIES ONLINE,-.21,5411,Provisions (Not for resale),19/04/2022,Ernest Bold Court
ASDA GROCERIES ONLINE,-3.12,5411,Provisions (Not for resale),19/04/2022,Ernest Bold Court
ASDA GROCERIES ONLINE,72.43,5411,Provisions (Not for resale),19/04/2022,Ernest Bold Court
POUNDSTRETCHER 772,4.47,5331,Cleaning Supplies and Materials,19/04/2022,Children & Family Contact Services
ASDA GROCERIES ONLINE,197.22,5411,Provisions (Not for resale),19/04/2022,Upper Pendeford Farm Childrens Home
B&M 497 - HS WOLVES,-25.00,5399,Client Allowances,18/04/2022,LAC Transitions Team
AMZNMKTPLACE AMAZON.CO,5.82,5999,Materials,18/04/2022,Education and Learning
AMZNMKTPLACE AMAZON.CO,42.21,5999,Materials,18/04/2022,Education and Learning
AMZNMktplace,22.65,5999,Direct Work With Children,18/04/2022,Power2 Team
AMZNMktplace,13.65,5999,Direct Work With Children,18/04/2022,Power2 Team
A2BGoCarz,12.20,4121,Direct Work With Children,18/04/2022,Power2 Team
A2BGoCarz,6.70,4121,Direct Work With Children,18/04/2022,Power2 Team
A2BGoCarz,5.70,4121,Direct Work With Children,18/04/2022,Power2 Team
A2BGoCarz,12.20,4121,Direct Work With Children,18/04/2022,Power2 Team
A2BGoCarz,6.70,4121,Direct Work With Children,18/04/2022,Power2 Team
ALDI 73 772,16.72,5411,Cleaning Supplies and Materials,18/04/2022,Children & Family Contact Services
THE WORKS,2.00,5310,Direct Work With Children,18/04/2022,LAC Transitions Team
ARGOS LTD,297.95,5310,Financial Assistance In Exceptional Circ,18/04/2022,LAC Transitions Team
DIXONS FAMILY BUTCHERS,110.00,5499,Provisions (Not for resale),18/04/2022,Bradley Resource Centre
FARMFOODS 603,57.00,5411,Provisions (Not for resale),18/04/2022,Bradley Resource Centre
W M MORRISONS.COM,318.89,5411,Provisions (Not for resale),18/04/2022,Bradley Resource Centre
ASDA GROCERIES ONLINE,-8.44,5411,Provisions (Not for resale),18/04/2022,Ernest Bold Court
ASDA GROCERIES ONLINE,65.57,5411,Provisions (Not for resale),18/04/2022,Ernest Bold Court
AMZNMktplace,9.16,5999,Accommodation Costs,18/04/2022,LAC Transitions Accommodation
AMZNMktplace,108.32,5999,Equipment - Purchase,18/04/2022,Aldersley Leisure Village
ALDI STORES LTD,14.89,5411,Client Allowances,18/04/2022,LAC Transitions Team
WEST MIDLANDS TRAV,55.00,4131,,18/04/2022,LAC Transitions Team
WEST MIDLANDS TRAV,55.00,4131,,18/04/2022,LAC Transitions Team
AMZNMktplace,130.39,5999,Books,18/04/2022,Foundation Studies
Amazon.co.uk 2E7E922J4,431.39,5969,Books,18/04/2022,Discretionary Fund
Amazon.co.uk 2E3ES42C4,46.75,5969,Books,18/04/2022,Discretionary Fund
AMZNMktplace,322.14,5999,Books,18/04/2022,Foundation Studies
AMZNMktplace,263.50,5999,Books,18/04/2022,Foundation Studies
Amazon.co.uk 2E53Q62L4,420.75,5969,Books,18/04/2022,Discretionary Fund
Amazon.co.uk 2E4BG12X4,125.91,5969,Books,18/04/2022,Discretionary Fund
AMZNMktplace,34.95,5999,Equipment - Purchase,18/04/2022,Wolverhampton Indoor and Open Market
AMZNMktplace,24.66,5999,Equipment - Purchase,18/04/2022,Wolverhampton Indoor and Open Market
A2BGoCarz,18.60,4121,Section 17,18/04/2022,CIN/CP Social Work Unit - Area 1
A2BGoCarz,174.00,4121,Section 17,18/04/2022,CIN/CP Social Work Unit - Area 1
ASDA GROCERIES ONLINE,204.88,5411,Provisions (Not for resale),18/04/2022,Duke Street Bungalows
AMZNMKTPLACE AMAZON.CO,4.16,5999,Equipment - Purchase,18/04/2022,Parks - East Area Management
AMZNMKTPLACE AMAZON.CO,18.81,5999,Equipment - Purchase,18/04/2022,Parks - East Area Management
PAYPAL  hd.connor,18.00,8999,Equipment - Purchase,18/04/2022,Northicote Farm
GSPRODUCTS.CO.UK,93.01,5999,Materials,15/04/2022,Steve McQueen
WWW.CORAM.ORG.UK,43.65,8398,,15/04/2022,Central Training
CO-OP GROUP 070361,.65,5411,Materials,15/04/2022,Place-based Infrastructure fund
WWW.METROIMAGING.CO.UK,13.85,2741,,15/04/2022,
BRITISH HEART FOUNDATI,216.67,8398,Client Allowances,15/04/2022,LAC Transitions Team
B&M 663 - MANDER,32.48,5399,Client Allowances,15/04/2022,LAC Transitions Team
HIGHSTREETVOUCHERS,15.00,8641,,15/04/2022,Pupil Premium
A2BGoCarz,8.50,4121,Direct Work With Children,15/04/2022,Power2 Team
A2BGoCarz,6.80,4121,Direct Work With Children,15/04/2022,Power2 Team
A2BGoCarz,6.80,4121,Direct Work With Children,15/04/2022,Power2 Team
A2BGoCarz,6.80,4121,Direct Work With Children,15/04/2022,Power2 Team
A2BGoCarz,6.80,4121,Direct Work With Children,15/04/2022,Power2 Team
ETSY.COM - JEWELLERYJK,25.55,5699,,15/04/2022,LAC Transitions Team
WWW.WOLVERHAMPTON.GOV.,173.48,9399,Rent,15/04/2022,LAC Transitions Team
ARENA THEATRE,13.90,8220,,15/04/2022,Director for Regeneration
AMZ Amazon Business UK,-23.99,5969,,15/04/2022,Strategic ICTS (ICT Serv Budget)
AMZNMktplace,16.87,5999,Equipment - Purchase,15/04/2022,Car Parks Operational Staff
AMZNMKTPLACE AMAZON.CO,-17.90,5999,,15/04/2022,LAC Transitions Team
HOME BARGAINS WOLVERHA,30.06,5251,Client Allowances,15/04/2022,LAC Transitions Team
thetrainline.com,162.66,4112,Client Allowances,15/04/2022,LAC Transitions Team
MIRAFIT,287.37,5941,Equipment - Purchase,15/04/2022,Aldersley Leisure Village
AMZNMKTPLACE AMAZON.CO,20.79,5999,Equipment - Purchase,15/04/2022,Aldersley Leisure Village
ARGOS LTD,29.16,5310,Client Allowances,15/04/2022,Restart
ASDA GROCERIES ONLINE,6.00,5411,Provisions (Not for resale),15/04/2022,Upper Pendeford Farm Childrens Home
AMZ Easier To,-58.55,5999,Equipment - Purchase,15/04/2022,Ernest Bold Court
A2BGoCarz,15.00,4121,Section 17,15/04/2022,CIN/CP Social Work Unit - Area 7
CT WOLVERHAMPTON,420.00,8398,Client Allowances,15/04/2022,LAC Transitions Team
WF EDUCATION GROUP LTD,-18.30,5047,Materials for resale,15/04/2022,Blakenhall Commty & Healthy Living Ctr
AMZNMktplace,47.84,5999,Books,15/04/2022,Global Budgets
ASDA STORES LTD,30.00,5411,Section 17,15/04/2022,CIN/CP Social Work Unit - Area 3
ASDA STORES LTD,80.00,5411,Section 17,15/04/2022,CIN/CP Social Work Unit - Area 8
TESCO-STORES 6777,22.36,5411,"Educ Trips, Holidays, Outings, Activity",15/04/2022,Upper Pendeford Farm Childrens Home
ASDA SUPERSTORE,133.99,5411,Provisions (Not for resale),15/04/2022,Upper Pendeford Farm Childrens Home
WEST MIDLAND SAFAI PAR,98.00,7996,"Educ Trips, Holidays, Outings, Activity",15/04/2022,Upper Pendeford Farm Childrens Home
CardtronicsUK,50.00,6011,,15/04/2022,CIN/CP Social Work Unit - Area 8
VOUCHER EXPRESS,40.00,7399,Section 17,15/04/2022,CIN/CP Social Work Unit - Area 8
AMZNMKTPLACE AMAZON.CO,57.62,5999,Equipment - Purchase,15/04/2022,Parks - East Area Management
AMZNMKTPLACE AMAZON.CO,29.45,5999,Equipment - Purchase,15/04/2022,Parks - East Area Management
PAYPAL  EBAY UK,17.90,5311,Equipment - Purchase,15/04/2022,Northicote Farm
AMZNMktplace,29.17,5999,Direct Work With Children,14/04/2022,Power2 Team
Sea Life Birmingham,22.95,7922,Direct Work With Children,14/04/2022,Power2 Team
Sea Life Birmingham,22.95,7922,Direct Work With Children,14/04/2022,Power2 Team
Sea Life Birmingham,45.90,7922,Direct Work With Children,14/04/2022,Power2 Team
Trainline.COM,31.44,4112,Direct Work With Children,14/04/2022,Power2 Team
SSE ELECTRICITY,16.67,4900,Accommodation Costs,14/04/2022,LAC Transitions Team
SSE ELECTRICITY,16.67,4900,Accommodation Costs,14/04/2022,LAC Transitions Team
IKEA LTD SHOP ONLINE,-24.00,5712,Equipment - Purchase,14/04/2022,Bradley Resource Centre
AMZNMKTPLACE AMAZON.CO,37.66,5999,Cleaning Supplies and Materials,14/04/2022,Bradley Resource Centre
AMZNMKTPLACE AMAZON.CO,69.93,5999,Cleaning Supplies and Materials,14/04/2022,Bradley Resource Centre
POST OFFICE,100.00,6011,Client Allowances,14/04/2022,LAC Transitions Team
PAYPAL  DEFIB4LIFEL,129.60,5047,,14/04/2022,Bert Williams Leisure Centre
JOHNSON CLEANERS UK LT,14.50,5999,,14/04/2022,Cemeteries
Amazon Prime 2E3GC7X64,6.66,5968,Subscriptions,14/04/2022,Upper Pendeford Farm Childrens Home
Amazon.co.uk 2E8KV1V74,15.46,5969,Gratuities,14/04/2022,Fostering Team & Allowances
WEST MIDLANDS TRAV,27.50,4131,Financial Assistance In Exceptional Circ,14/04/2022,Children In Care 1
WEST MIDLANDS TRAV,27.50,4131,Financial Assistance In Exceptional Circ,14/04/2022,Children In Care 1
AMZNMktplace,260.78,5999,Books,14/04/2022,Foundation Studies
AMZNMktplace,138.06,5999,Books,14/04/2022,Foundation Studies
Amazon.co.uk 2E7JD3V24,56.75,5969,Books,14/04/2022,Discretionary Fund
ASDA SUPERSTORE,250.00,5411,Client Allowances,14/04/2022,LAC Transitions Team
ASDA SUPERSTORE,250.00,5411,Client Allowances,14/04/2022,LAC Transitions Team
WM MORRISONS STORE,50.00,5411,Client Allowances,14/04/2022,EIP Locality 2
Wix.com,186.26,5817,,14/04/2022,Technical Support
AMZNMktplace,5.15,5999,Books,14/04/2022,Global Budgets
AMZNMktplace,11.20,5999,Equipment - Purchase,14/04/2022,Global Budgets
WCC MOTO PAYMENTS,40.00,9399,Services - Fees and Charges,14/04/2022,Legal Services
Amazon.co.uk 2E2I97VU4,12.97,5969,Equipment - Purchase,14/04/2022,Ernest Bold Court
AMZNMKTPLACE AMAZON.CO,4.99,5999,Equipment - Purchase,14/04/2022,Parks - East Area Management
AMZNMKTPLACE AMAZON.CO,6.59,5999,Equipment - Purchase,14/04/2022,Parks - East Area Management
TFM FARM   COUNTRY,21.87,0763,Equipment - Purchase,14/04/2022,Northicote Farm
MDN SUPPLIES LTD,49.89,5085,Materials,14/04/2022,Steve McQueen
Dulux Decorator Centre,103.20,5198,Materials,14/04/2022,Black Country Beats
WWW.CIRIA.ORG,54.00,7399,,14/04/2022,Central Training
WOLVERHAMPTON ART GALL,4.10,5971,,14/04/2022,
OAKLAND,737.50,7011,Accommodation Costs,14/04/2022,Destitute Plus
OAKLAND,737.50,7011,Accommodation Costs,14/04/2022,Destitute Plus
AMAZON OXFORD LTD,420.00,7011,Accommodation Costs,14/04/2022,Mental Health Assessment & Care Mgmt
HMCTS BIRMINGHAMCONF11,81.00,9222,Services - Fees and Charges,14/04/2022,Mental Health Assessment & Care Mgmt
CARVERS,35.23,5211,Materials,13/04/2022,Collections
CARVERS,11.80,5211,Materials,13/04/2022,Technician
LION PICTURE FRAMING,146.65,5085,Materials,13/04/2022,Black Country Beats
WWW.CPAG.ORG.UK,354.35,8398,,13/04/2022,Central Training
MAG EVENTS,298.80,5192,,13/04/2022,Central Training
UPPAL SWEET CENTRE LTD,17.50,5462,Materials,13/04/2022,Place-based Infrastructure fund
TESCO STORES 4758,28.20,5411,Materials,13/04/2022,Place-based Infrastructure fund
FACEBK BHJ23FBAR2,500.00,7311,R4317,13/04/2022,Communications & Marketing - General
NAMESCO,28.99,4816,R4317,13/04/2022,Visitor Economy - Development
NAMESCO,50.99,4816,R4317,13/04/2022,Visitor Economy - Development
NAMESCO,26.99,4816,R4317,13/04/2022,Communications & Marketing - General
A2BGoCarz,81.10,4121,Client Transport,13/04/2022,Fostering Team & Allowances
BAKER ROSS,95.38,5970,Materials,13/04/2022,Education and Learning
DVLA VEHICLE TAX,292.50,9311,R3004,13/04/2022,Fleet Management
DVLA VEHICLE TAX,202.50,9311,R3004,13/04/2022,Fleet Management
DVLA VEHICLE TAX,292.50,9311,R3004,13/04/2022,Fleet Management
DVLA VEHICLE TAX,292.50,9311,R3004,13/04/2022,Fleet Management
DVLA VEHICLE TAX,202.50,9311,,13/04/2022,Fleet Management
DVLA VEHICLE TAX,292.50,9311,R3004,13/04/2022,Fleet Management
TESCO STORES 4758,22.75,5411,Direct Work With Children,13/04/2022,Power2 Team
SumUp   Fit directory,120.00,8299,Direct Work With Children,13/04/2022,Power2 Team
HOO FARM,55.00,7998,Direct Work With Children,13/04/2022,Power2 Team
AMZNMktplace,25.93,5999,Client Allowances,13/04/2022,LAC Transitions Accommodation
MARKS&SPENCER PLC,35.00,5411,Provisions (Not for resale),13/04/2022,Regional Adoption Agency
W M MORRISONS.COM,183.34,5411,Provisions (Not for resale),13/04/2022,Bradley Resource Centre
Provisio GmbH,863.79,5734,Computing - Purchase of Software,13/04/2022,COVID 19 - Additional Restrictions Grant
ICELAND FOODS,-5.40,5411,,13/04/2022,Bradley Resource Centre
ICELAND FOODS,29.10,5411,,13/04/2022,Bradley Resource Centre
ICELAND FOODS,73.17,5411,Catering,13/04/2022,Bradley Resource Centre
AMZNMktplace,15.99,5999,Catering,13/04/2022,Bradley Resource Centre
AMZNMktplace,37.69,5999,Catering,13/04/2022,Bradley Resource Centre
AMZNMKTPLACE AMAZON.CO,37.54,5999,Materials,13/04/2022,Community Pathways
A2BGoCarz,13.20,4121,Client Transport,13/04/2022,LAC Team
A2BGoCarz,520.00,4121,Client Transport,13/04/2022,LAC Team
A2BGoCarz,150.40,4121,Financial Assistance In Exceptional Circ,13/04/2022,Children In Care 1
AMZNMktplace,223.72,5999,Books,13/04/2022,Foundation Studies
AMZNMktplace,183.77,5999,Books,13/04/2022,Foundation Studies
WWW.WMCA.CO.UK,55.00,9399,,13/04/2022,LAC Transitions Team
HUGHES,521.00,5732,Client Allowances,13/04/2022,LAC Transitions Accommodation
WILKO RETAIL LIMITED,17.10,5399,Equipment - Purchase,13/04/2022,Bilston Market & Licensed Operations
AMZNMktplace,11.75,5999,Books,13/04/2022,Global Budgets
AMZNMktplace,10.82,5999,Equipment - Purchase,13/04/2022,Global Budgets
AMZNMktplace,23.96,5999,Equipment - Purchase,13/04/2022,Global Budgets
ROOKERY  Sainsburys B,200.00,6011,Provisions (Not for resale),13/04/2022,Duke Street Bungalows
ARGOS LTD,458.95,5310,Furniture,13/04/2022,CIN/CP Social Work Unit - Area 2
ROOKERY  Sainsburys B,200.00,6011,Provisions (Not for resale),13/04/2022,Duke Street Bungalows
A2BGoCarz,280.00,4121,,13/04/2022,CIN/CP Social Work Unit - Area 7
HM PASSPORT OFFICE,75.50,9399,Financial Assistance In Exceptional Circ,12/04/2022,LAC Team
HM PASSPORT OFFICE,49.00,9399,Financial Assistance In Exceptional Circ,12/04/2022,LAC Team
Trainline.COM,140.06,4112,Public Transport,12/04/2022,Looked After Team 2
WOLVERHAMPTON ART GALL,7.37,5971,Hospitality,12/04/2022,Black Country Beats
7 VICTORIA SQUARE Sai,60.00,6011,Client Allowances,12/04/2022,LAC Transitions Accommodation
Amazon Prime 2E8SD1AC4,6.66,5968,,12/04/2022,LAC Transitions Team
LIDL GB WALSALL,8.32,5411,Client Allowances,12/04/2022,LAC Transitions Team
Trainline.COM,65.57,4112,Public Transport,12/04/2022,AES Staff Development
AMZNMktplace,26.58,5999,Equipment - Purchase,12/04/2022,Community Enablement
ASDA GROCERIES ONLINE,69.66,5411,Provisions (Not for resale),12/04/2022,Ernest Bold Court
HOME BARGAINS,17.36,5251,Equipment - Purchase,12/04/2022,Wolverhampton Indoor and Open Market
TESCO STORES 4758,14.65,5411,,11/04/2022,EIP Locality 8
ARGOS LTD,72.95,5310,,11/04/2022,LAC Transitions Team
AMZNMktplace,29.97,5999,Materials,11/04/2022,Education and Learning
PREMIER INN,73.50,3811,,11/04/2022,Pupil Premium
DVLA VEHICLE TAX,167.50,9311,R3004,11/04/2022,Fleet Management
DVLA VEHICLE TAX,167.50,9311,R3004,11/04/2022,Fleet Management
HMCTS BIRMINGHAMCONF11,81.00,9222,Services - Fees and Charges,11/04/2022,Mental Health Assessment & Care Mgmt
ARGOS LTD,66.65,5310,Computing - Consumables,11/04/2022,Outdoor Events Admin
AMZNMktplace,7.68,5999,Direct Work With Children,11/04/2022,Power2 Team
AMZNMktplace,32.40,5999,Direct Work With Children,11/04/2022,Power2 Team
POUNDLAND LTD 1463,6.00,5310,Direct Work With Children,11/04/2022,LAC Transitions Team
CARD FACTORY,2.27,5947,Direct Work With Children,11/04/2022,LAC Transitions Team
Amazon.co.uk 2E2PY5JR4,394.62,5969,,11/04/2022,Strategic ICTS (ICT Serv Budget)
MCDONALDS,6.10,5814,Direct Work With Children,11/04/2022,LAC Transitions Team
DELL PRODUCTS,-260.50,5045,,11/04/2022,Strategic ICTS (ICT Serv Budget)
WWW.BROADBANDBUYER.CO.,"1,406.88",4814,,11/04/2022,Strategic ICTS (ICT Serv Budget)
Amazon.co.uk 2E9726LD4,40.00,5969,Direct Work With Children,11/04/2022,Corporate Parenting
Amazon.co.uk 2E77C7LI4,40.00,5969,Direct Work With Children,11/04/2022,Corporate Parenting
DIXONS FAMILY BUTCHERS,210.00,5499,Provisions (Not for resale),11/04/2022,Bradley Resource Centre
123 REG LTD,9.99,5968,Computing - Purchase of Software,11/04/2022,Technical Support
WWW.THERANGE.CO.UK,91.62,5719,Client Allowances,11/04/2022,LAC Transitions Team
CANVA  I03386-13925417,9.16,7221,Subscriptions,11/04/2022,Communications & Marketing - General
WRAPBOOTSTRAP,9.26,5045,Subscriptions,11/04/2022,Communications & Marketing - General
A2BGoCarz,273.40,4121,Client Transport,11/04/2022,Fostering Team & Allowances
WWW.JUKEBOX45S.COM,"1,950.00",5735,Materials,11/04/2022,Black Country Beats
ARGOS WOLVERHAMPTO,45.83,5310,Client Allowances,11/04/2022,LAC Transitions Team
AMZNMktplace,28.73,5999,Direct Work With Children,11/04/2022,Power2 Team
AMZNMktplace,17.12,5999,Direct Work With Children,11/04/2022,Power2 Team
A2BGoCarz,5.20,4121,Direct Work With Children,11/04/2022,Power2 Team
A2BGoCarz,6.50,4121,Direct Work With Children,11/04/2022,Power2 Team
A2BGoCarz,5.00,4121,Direct Work With Children,11/04/2022,Power2 Team
A2BGoCarz,6.80,4121,Direct Work With Children,11/04/2022,Power2 Team
A2BGoCarz,6.80,4121,Direct Work With Children,11/04/2022,Power2 Team
A2BGoCarz,8.40,4121,Direct Work With Children,11/04/2022,Power2 Team
ASDA,5.90,5411,Subsistence,11/04/2022,Bantock House Museum
ASDA GROCERIES ONLINE,51.44,5411,Provisions (Not for resale),11/04/2022,Ernest Bold Court
AMZNMktplace,37.46,5999,Client Allowances,11/04/2022,LAC Transitions Team
AMZNMktplace,59.99,5999,Client Allowances,11/04/2022,LAC Transitions Team
SAINSBURYS S/MKTS,25.00,5411,Client Allowances,11/04/2022,LAC Transitions Team
POST OFFICE,16.67,6011,Client Allowances,11/04/2022,LAC Transitions Team
PREMIER INN,-38.00,3811,,11/04/2022,Regional Adoption Agency
RESPONSTER PLUS PLAN,15.07,5734,Computing - Purchase of Software,11/04/2022,City Direct
ARGOS LTD,45.78,5310,Comms - Mobile Telephones,11/04/2022,LAC Transitions Team
APPLE.COM/BILL,.79,5815,Computing - Purchase of Software,11/04/2022,Delivery & OCE Development
AMZNMktplace,164.27,5999,Books,11/04/2022,Foundation Studies
AMZNMktplace,34.97,5999,Equipment - Purchase,11/04/2022,Foundation Studies
AMZNMKTPLACE AMAZON.CO,57.49,5999,Equipment - Purchase,11/04/2022,Discretionary Fund
ARGOS LTD,250.00,5310,Client Allowances,11/04/2022,LAC Transitions Team
ARGOS LTD,40.45,5310,Client Allowances,11/04/2022,LAC Transitions Team
ARGOS LTD,203.25,5310,,11/04/2022,EIP Locality 1
ASDA GROCERIES ONLINE,171.69,5411,Provisions (Not for resale),11/04/2022,Duke Street Bungalows
ARGOS LTD,176.00,5310,Equipment - Purchase,11/04/2022,EIP Locality 2
ARGOS LTD,446.95,5310,Equipment - Purchase,11/04/2022,EIP Locality 2
ARGOS LTD,325.95,5310,Equipment - Purchase,11/04/2022,EIP Locality 2
CURRYS CANNOCK,9.99,5732,Computing - Consumables,11/04/2022,CIN/CP Social Work Unit - Area 8
CardtronicsUK,50.00,6011,Provisions (Not for resale),11/04/2022,Ernest Bold Court
VOUCHER EXPRESS,40.00,7399,Section 17,11/04/2022,CIN/CP Social Work Unit - Area 8
ARRIVA UK BUS,4.60,4131,Section 17,11/04/2022,Court Team
Trainline.COM,12.13,4112,Section 17,11/04/2022,Court Team
AMZNMktplace,15.92,5999,Equipment - Purchase,11/04/2022,Parks - East Area Management
Amazon.co.uk 2E2BE9NA4,7.46,5969,,11/04/2022,Fleet Management
Amazon.co.uk 2E6LO2334,41.63,5969,Stationery,11/04/2022,Revenues
Trainline.COM,11.51,4112,,08/04/2022,Digital Inclusion
WWW.PIZZAHUT.CO.UK,16.23,5814,Catering,08/04/2022,Corporate Parenting
WWW.DEC.ORG.UK,600.00,8398,Grant Payments,08/04/2022,Ward Fund - Bushbury North
MEDIA STOREHOUSE LTD,102.53,7338,R4317,08/04/2022,WV Active Business Support
WWW.METROIMAGING.CO.UK,18.77,2741,Materials,08/04/2022,Black Country Beats
PAYPAL  GUS CORAL,300.00,5971,R9308,08/04/2022,Black Country Beats
CURRYS WOLVERHAMPTON,83.33,5732,Client Allowances,08/04/2022,LAC Transitions Team
WWW.FLAGSANDFLAGPOLES.,282.00,2741,Equipment - Purchase,08/04/2022,Music Support Team
ASDA GEORGE COM LEEDS,-4.50,5411,Provisions (Not for resale),08/04/2022,CIN/CP Social Work Unit - Area 2
DVLA VEHICLE TAX,292.50,9311,R3004,08/04/2022,Fleet Management
DVLA VEHICLE TAX,292.50,9311,R3004,08/04/2022,Fleet Management
Trainline.COM,12.23,4112,Public Transport,08/04/2022,Outdoor Events Admin
Trainline.COM,12.43,4112,Public Transport,08/04/2022,Outdoor Events Admin
AMZNMktplace,5.62,5999,Direct Work With Children,08/04/2022,Power2 Team
AMZNMKTPLACE AMAZON.CO,10.82,5999,,08/04/2022,Regional Adoption Agency
SPECSAVERSEVOUGB-,948.86,8043,,08/04/2022,HR Advice
RIVER ISLAND 400,125.00,5691,Client Allowances,08/04/2022,LAC Transitions Team
ARGOS LTD,229.12,5310,Client Allowances,08/04/2022,LAC Transitions Team
Trainline.COM,43.82,4112,Client Allowances,08/04/2022,The House Project
AMZNMktplace,66.12,5999,Equipment - Purchase,08/04/2022,Foundation Studies
AMZNMktplace,38.35,5999,Books,08/04/2022,Foundation Studies
AMZNMktplace,138.06,5999,Books,08/04/2022,Foundation Studies
AMZNMktplace,13.50,5999,Equipment - Purchase,08/04/2022,Foundation Studies
AMZNMktplace,46.02,5999,Books,08/04/2022,Foundation Studies
AMZNMktplace,145.73,5999,Books,08/04/2022,Foundation Studies
Amazon.co.uk 298U44YN4,299.88,5969,Books,08/04/2022,Creative Studies Delivery Area
AMZNMKTPLACE AMAZON.CO,14.14,5999,Equipment - Purchase,08/04/2022,Discretionary Fund
AMZNMKTPLACE AMAZON.CO,5.74,5999,Equipment - Purchase,08/04/2022,Discretionary Fund
AMZNMKTPLACE AMAZON.CO,38.32,5999,Equipment - Purchase,08/04/2022,Discretionary Fund
AMZNMKTPLACE AMAZON.CO,33.29,5999,Equipment - Purchase,08/04/2022,Discretionary Fund
AMZNMKTPLACE AMAZON.CO,28.32,5999,Equipment - Purchase,08/04/2022,Business Support Services
AMZNMktplace,11.28,5999,Books,08/04/2022,Foundation Studies
CUMMINGS BROTHERS LOCK,2.50,7399,,08/04/2022,Cleaning of Buildings - General
PREMIER INN,97.49,3811,Accommodation Costs,08/04/2022,Private Hire Drivers
AMZNMktplace,11.24,5999,Equipment - Purchase,08/04/2022,Parks - East Area Management
AMZNMktplace,12.83,5999,Equipment - Purchase,08/04/2022,Parks - East Area Management
AMZNMktplace,19.99,5999,Direct Work With Children,08/04/2022,Power2 Team
A2BGoCarz,6.80,4121,Direct Work With Children,08/04/2022,Power2 Team
A2BGoCarz,6.70,4121,Direct Work With Children,08/04/2022,Power2 Team
A2BGoCarz,11.20,4121,Direct Work With Children,08/04/2022,Power2 Team
A2BGoCarz,6.80,4121,Direct Work With Children,08/04/2022,Power2 Team
A2BGoCarz,8.00,4121,Direct Work With Children,08/04/2022,Power2 Team
WWW.SCREWFIX.COM,35.57,5211,Materials,08/04/2022,Cemeteries
POUNDLAND LTD 1463,2.00,5310,Direct Work With Children,08/04/2022,LAC Transitions Team
DUNELM (SOFT FURNISHIN,60.20,5714,Equipment - Purchase,08/04/2022,Bradley Resource Centre
B&M 497 - HS WOLVES,28.97,5399,Equipment - Purchase,08/04/2022,Bradley Resource Centre
SP   CONSERVATION RESO,97.98,5970,Materials,08/04/2022,Archives
MENTAL HEALTH FOUNDATI,52.91,8398,Direct Work With Children,08/04/2022,Hashtag Youth Engagement Strategy
ICELAND FOODS,-1.90,5411,Provisions (Not for resale),08/04/2022,Bradley Resource Centre
ICELAND FOODS,141.05,5411,Provisions (Not for resale),08/04/2022,Bradley Resource Centre
W M MORRISONS.COM,286.41,5411,Provisions (Not for resale),08/04/2022,Bradley Resource Centre
UKN01371,50.00,6011,Client Allowances,08/04/2022,LAC Transitions Team
AMZNMktplace,128.32,5999,Client Allowances,08/04/2022,LAC Transitions Team
POST OFFICE COUNTER,3.10,9402,Client Allowances,08/04/2022,LAC Transitions Team
ARGOS WOLVERHAMPTO,24.99,5310,Client Allowances,08/04/2022,LAC Transitions Team
123 REG LTD,19.98,4816,Computing - Purchase of Software,08/04/2022,Technical Support
SCREWFIX DIR LTD,19.47,5211,Materials,08/04/2022,Patching
W M MORRISONS.COM,73.99,5411,Materials,08/04/2022,Discretionary Fund
NoteMachine ATM,60.00,6011,,08/04/2022,LAC Transitions Team
AMZNMktplace,31.65,5999,Client Allowances,08/04/2022,LAC Transitions Team
AMZNMKTPLACE AMAZON.CO,-27.99,5999,Equipment - Purchase,08/04/2022,Technician
AMZNMktplace,34.81,5999,Equipment - Purchase,08/04/2022,Technician
AMZNMktplace,11.67,5999,Client Allowances,08/04/2022,LAC Transitions Team
SAINSBURYS S/MKTS,33.00,5411,Accommodation Costs,08/04/2022,LAC Transitions Accommodation
WWW.THERANGE.CO.UK,92.91,5719,Equipment - Purchase,08/04/2022,Bradley Resource Centre
RILEYLEISURE.COM,281.04,5941,Client Allowances,08/04/2022,LAC Transitions Team
WWW.SCREWFIX.COM,49.98,5211,Materials,08/04/2022,Technician
Dunelm,16.67,5712,Client Allowances,08/04/2022,LAC Transitions Team
SQ  HIJAB BOUTIQUE,75.00,5699,Client Allowances,08/04/2022,LAC Transitions Team
SAINSBURYS SMKTS,100.00,5411,Catering,08/04/2022,Youth Offending Team
CardtronicsUK,250.00,6011,Subsistence,07/04/2022,Youth Offending Team
Trainline.COM,121.21,4112,,07/04/2022,Executive Director of Families
AMZNMktplace,34.32,5999,Equipment - Purchase,07/04/2022,ICT Services
AMZNMktplace,220.00,5999,Equipment - Purchase,07/04/2022,Discretionary Fund
AMZNMktplace,39.95,5999,Equipment - Purchase,07/04/2022,Creative Studies Delivery Area
AMZNMKTPLACE AMAZON.CO,54.16,5999,Equipment - Purchase,07/04/2022,Discretionary Fund
WIX.COM 989148863,279.39,5968,,07/04/2022,Technical Support
B & Q 1243,16.67,5200,Equipment - Purchase,07/04/2022,Bradley Resource Centre
CT WOLVERHAMPTON,75.00,8398,Furniture,07/04/2022,EIP Locality 2
CS MORRISONS GIFT CARD,150.00,7399,Subsistence,07/04/2022,EIP Locality 1
AMZNMktplace,20.82,5999,Computing - Consumables,07/04/2022,CIN/CP Social Work Unit - Area 1
MARKS&SPENCER PLC SACA,6.00,5411,Catering,07/04/2022,Civic Centre Catering
SAINSBURYS S/MKTS,15.50,5411,Catering,07/04/2022,Civic Centre Catering
CURRYS WOLVERHAMPTON,178.99,5732,Equipment - Purchase,07/04/2022,Upper Pendeford Farm Childrens Home
SMYTHS TOYS WOLVERHAMP,221.85,5945,"Educ Trips, Holidays, Outings, Activity",07/04/2022,Upper Pendeford Farm Childrens Home
WWW.ISLINGTON.GOV.UK,175.00,9399,No Recourse to Public Funds,07/04/2022,NRPF
WWW.ISLINGTON.GOV.UK,175.00,9399,No Recourse to Public Funds,07/04/2022,NRPF
WWW.ISLINGTON.GOV.UK,175.00,9399,No Recourse to Public Funds,07/04/2022,NRPF
WWW.ISLINGTON.GOV.UK,175.00,9399,No Recourse to Public Funds,07/04/2022,NRPF
AMZNMktplace,13.72,5999,Equipment - Purchase,07/04/2022,Parks - East Area Management
CO-OP GROUP 070362,6.00,5411,Provisions (Not for resale),07/04/2022,Northicote Farm
DAVIES TIMBER LIMITED,85.00,5211,Materials,07/04/2022,Black Country Beats
WWW.SCREWFIX.COM,111.81,5211,Materials for resale,07/04/2022,Technician
B&M 497 - HS WOLVES,25.00,5399,Client Allowances,07/04/2022,LAC Transitions Team
PAYPAL  CHUHAITONG ONB,14.99,5200,Client Allowances,07/04/2022,LAC Transitions Team
ARGOS LTD,123.04,5310,Client Allowances,07/04/2022,LAC Transitions Team
TESCO STORES 4357,4.47,5411,Accommodation Costs,07/04/2022,The House Project
WWW.FLAGSANDFLAGPOLES.,250.00,2741,Events,07/04/2022,Music Support Team
FACEBK ET2ALDXAR2,500.00,7311,R4317,07/04/2022,Communications & Marketing - General
MYPROTEIN.COM,13.53,5399,R4317,07/04/2022,WV Active Business Support
Google ADS9680351324,500.00,7311,R4317,07/04/2022,Communications & Marketing - General
INTERFLORA BRITISH UNI,49.00,5992,Gratuities,07/04/2022,Fostering Team & Allowances
PARCELFORCE WL,9.29,4215,Public Transport,07/04/2022,Black Country Beats
NoteMachine ATM,208.33,6011,Client Allowances,07/04/2022,LAC Transitions Team
BRITISH HEART FOUNDATI,312.50,8398,Client Allowances,07/04/2022,LAC Transitions Team
WWW.SCREWFIX.COM,17.46,5211,Equipment - Purchase,07/04/2022,Outdoor Events Admin
Trainline.COM,77.90,4112,,07/04/2022,Pupil Premium
ASDA GEORGE COM LEEDS,27.50,5411,Clothing / Uniforms,07/04/2022,CIN/CP Social Work Unit - Area 8
AMZNMktplace,65.49,5999,Direct Work With Children,07/04/2022,Power2 Team
B&M 497 - HS WOLVES,32.46,5399,Client Allowances,07/04/2022,LAC Transitions Team
DVLA DRIVER ONLINE,34.00,9399,Professional fees,07/04/2022,LAC Transitions Team
Amazon.co.uk 299ZZ1R14,23.99,5969,Computing - Consumables,07/04/2022,Strategic ICTS (ICT Serv Budget)
AMZNMKTPLACE AMAZON.CO,217.50,5999,Computing - Purchase of Hardware,07/04/2022,Strategic ICTS (ICT Serv Budget)
SP   SCANCOM.STORE,234.48,4812,Computing - Purchase of Hardware,07/04/2022,Strategic ICTS (ICT Serv Budget)
Microsoft Microsoft 36,59.99,5816,,07/04/2022,MI Friendly Cities
Hotel at Booking.com,249.37,7011,Accommodation Costs,07/04/2022,Adult Services - North
CardtronicsUK,250.00,6011,Direct Work With Children,07/04/2022,Power2 Team
VOUCHER EXPRESS,75.00,7399,Direct Work With Children,07/04/2022,Power2 Team
ROYAL BK OF SCOTLAND,100.00,6011,Accommodation Costs,07/04/2022,The House Project
AMZNMktplace,22.49,5999,Client Allowances,07/04/2022,LAC Transitions Team
AMZNMktplace,12.07,5999,Client Allowances,07/04/2022,LAC Transitions Team
AMZNMktplace,53.29,5999,Client Allowances,07/04/2022,LAC Transitions Team
AMZNMktplace,52.49,5999,Client Allowances,07/04/2022,LAC Transitions Team
AMZNMktplace,19.32,5999,Client Allowances,07/04/2022,LAC Transitions Team
thetrainline.com,10.44,4112,Client Allowances,07/04/2022,LAC Transitions Team
SMYTHS TOYS WOLVERHAMP,6.66,5945,Client Allowances,07/04/2022,LAC Transitions Team
123 REG LTD,9.99,5968,Computing - Purchase of Software,07/04/2022,Technical Support
SAINSBURYS S/MKTS,10.29,5411,Materials,07/04/2022,Patching
SEVERN TRENT WATER,45.69,4900,Accommodation Costs,07/04/2022,LAC Transitions Accommodation
SEVERN TRENT WATER,86.06,4900,Accommodation Costs,07/04/2022,LAC Transitions Accommodation
CVAA UK LTD,69.00,8398,,07/04/2022,Regional Adoption Agency
PAYPAL  SCREWFIX,-74.99,5099,Equipment - Purchase,07/04/2022,Bert Williams Leisure Centre
Amazon.co.uk 290RY9RA4,8.25,5969,,07/04/2022,Bert Williams Leisure Centre
PAYPAL  TOOLSTATION,18.49,5251,,07/04/2022,Bert Williams Leisure Centre
PAYPAL  SCREWFIX,8.99,5099,,07/04/2022,Bert Williams Leisure Centre
NEWS EXTRA,3.00,5994,Catering,07/04/2022,Mayoral Expenses
ASDA GROCERIES ONLINE,-.50,5411,Provisions (Not for resale),07/04/2022,Upper Pendeford Farm Childrens Home
ASDA GROCERIES ONLINE,174.70,5411,Provisions (Not for resale),07/04/2022,Upper Pendeford Farm Childrens Home
AMZNMktplace,138.36,5999,Equipment - Purchase,07/04/2022,Upper Pendeford Farm Childrens Home
AMZNMKTPLACE AMAZON.CO,136.74,5999,Equipment - Purchase,07/04/2022,Upper Pendeford Farm Childrens Home
ARGOS LTD,261.95,5310,Equipment - Purchase,07/04/2022,Upper Pendeford Farm Childrens Home
AMZNMKTPLACE AMAZON.CO,27.99,5999,Equipment - Purchase,06/04/2022,Technician
AMZNMKTPLACE AMAZON.CO,3.74,5999,Materials,06/04/2022,Black Country Beats
AMZNMKTPLACE AMAZON.CO,32.71,5999,Materials,06/04/2022,Black Country Beats
IKEA LTD SHOP ONLINE,91.67,5712,Materials,06/04/2022,Black Country Beats
POUNDLAND LTD 1463,6.50,5310,,06/04/2022,Hashtag Youth Engagement Strategy
WWW.LETSRECYCLE.COM,196.80,5815,,06/04/2022,Waste Coll & Recycling Serv General
NAMESCO,77.47,4816,Subscriptions,06/04/2022,Communications & Marketing - General
ESSENTIALPHOTO.CO.,8.33,5946,Equipment - Purchase,06/04/2022,Communications & Marketing - General
WWW.AVANTIWESTCOAST.CO,74.15,4112,Public Transport,06/04/2022,Looked After Team 2
AMZNMktplace,61.96,5999,,06/04/2022,EIP Locality 8
ARGOS LTD,120.00,5310,,06/04/2022,EIP Locality 8
HM PASSPORT OFFICE,75.50,9399,Client Allowances,06/04/2022,LAC Transitions Team
ASDA STORES,9.19,5411,Client Allowances,06/04/2022,LAC Transitions Team
ASDA STORES,7.00,5411,Client Allowances,06/04/2022,LAC Transitions Team
WWW.WOLVERHAMPTON.GOV.,166.54,9399,Rent,06/04/2022,LAC Transitions Team
WCC MOTO PAYMENTS,75.00,9399,R6403,06/04/2022,LAC Transitions Team
AMZNMKTPLACE AMAZON.CO,14.15,5999,Equipment - Purchase,06/04/2022,Local Government Elections
WWW.SCREWFIX.COM,90.82,5211,Equipment - Purchase,06/04/2022,Car Parks Operational Staff
AMZNMktplace,40.37,5999,Materials,06/04/2022,Document Centre - General
123 REG LTD,9.99,5968,Computing - Purchase of Software,06/04/2022,Technical Support
SQ  ROYSTON SMITH LTD,52.67,5399,Materials,06/04/2022,Patching
AMZNMKTPLACE AMAZON.CO,148.12,5999,,06/04/2022,Head of Service Specialist Int Support
WWW.E.ORG,20.00,4900,Accommodation Costs,06/04/2022,LAC Transitions Accommodation
PAYPAL  SDENTERPRIS,104.08,5331,Equipment - Purchase,06/04/2022,Bert Williams Leisure Centre
AMZNMKTPLACE AMAZON.CO,29.95,5999,Equipment - Purchase,06/04/2022,Upper Pendeford Farm Childrens Home
AMZNMktplace,32.76,5999,Equipment - Purchase,06/04/2022,Upper Pendeford Farm Childrens Home
AMZNMktplace,65.52,5999,Equipment - Purchase,06/04/2022,Upper Pendeford Farm Childrens Home
Amazon.co.uk 299IV67H4,129.99,5969,Equipment - Purchase,06/04/2022,Upper Pendeford Farm Childrens Home
SP   DAALS.CO.UK,314.99,5712,Equipment - Purchase,06/04/2022,Upper Pendeford Farm Childrens Home
AMZNMKTPLACE AMAZON.CO,92.99,5999,Equipment - Purchase,06/04/2022,Upper Pendeford Farm Childrens Home
thetrainline.com,121.21,4112,,06/04/2022,Executive Director of Families
Amazon.co.uk 291218944,14.90,5969,Equipment - Health and Safety,06/04/2022,Business Support Services
Amazon.co.uk 299P187L4,31.81,5969,Equipment - Purchase,06/04/2022,The Maltings
Amazon.co.uk 299NE2744,31.81,5969,Equipment - Purchase,06/04/2022,The Maltings
Amazon.co.uk 297N49754,31.81,5969,Equipment - Purchase,06/04/2022,The Maltings
Amazon.co.uk 296PN77Y4,31.81,5969,Equipment - Purchase,06/04/2022,The Maltings
Amazon.co.uk 293NT97M4,31.81,5969,Equipment - Purchase,06/04/2022,The Maltings
Amazon.co.uk 293NH37N4,31.81,5969,Equipment - Purchase,06/04/2022,The Maltings
SAINSBURYS.CO.UK,97.75,5411,Provisions (Not for resale),06/04/2022,Discretionary Fund
A2BGoCarz,192.00,4121,Section 17,06/04/2022,CIN/CP Social Work Unit - Area 1
AMZNMKTPLACE AMAZON.CO,11.99,5999,Books,06/04/2022,Global Budgets
AMZNMKTPLACE AMAZON.CO,34.98,5999,Equipment - Purchase,06/04/2022,Global Budgets
ENJOY WOLVERHAMPTON,100.00,5399,Equipment - Purchase,06/04/2022,Environmental Protection
BLACK COUNTRY SKIP HIR,193.33,7394,R5003,06/04/2022,EIP Locality 2
POSTURITE LTD,95.17,5719,Computing - Consumables,06/04/2022,CIN/CP Social Work Unit - Area 8
A2BGoCarz,18.20,4121,Section 17,06/04/2022,CIN/CP Social Work Unit - Area 8
A2BGoCarz,240.00,4121,Section 17,06/04/2022,Court Team
AMZNMktplace,32.49,5999,Equipment - Purchase,06/04/2022,Cycling Schemes - Bikeability
Trainline.COM,-46.60,4112,Public Transport,06/04/2022,Head of People
JD SPORTS INTERNET,30.00,5941,Grant Payments,06/04/2022,EIP Locality 8
Edge Training Ltd,720.00,8999,,05/04/2022,MCA General
AMZNMKTPLACE AMAZON.CO,6.66,5999,Materials,05/04/2022,Black Country Beats
WILKO RETAIL LIMITED,3.12,5399,Equipment - Purchase,05/04/2022,Technician
AMZNMKTPLACE AMAZON.CO,30.97,5999,Materials,05/04/2022,Technician
AMZNMKTPLACE AMAZON.CO,4.99,5999,Materials,05/04/2022,Black Country Beats
iZ  BEATSABAR MUSI,150.00,8398,Equipment - Hire,05/04/2022,Youth Offending Team
Amazon.co.uk 295B232F4,140.00,5969,R4317,05/04/2022,WV Active Business Support
INTERFLORA BRITISH UNI,46.00,5992,Gratuities,05/04/2022,Fostering Team & Allowances
NoteMachine ATM,200.00,6011,,05/04/2022,EIP Locality 8
thetrainline.com,158.67,4112,Public Transport,05/04/2022,Visitor Economy - Development
ASDA STORES LTD,-50.00,5411,Client Allowances,05/04/2022,CIN/CP Social Work Unit - Area 3
ASDA GROCERIES ONLINE,-4.22,5411,Provisions (Not for resale),05/04/2022,Ernest Bold Court
ASDA GROCERIES ONLINE,56.39,5411,Provisions (Not for resale),05/04/2022,Ernest Bold Court
AMZNMktplace,24.98,5999,Equipment - Purchase,05/04/2022,Bradley Resource Centre
W M MORRISONS.COM,279.95,5411,Provisions (Not for resale),05/04/2022,Bradley Resource Centre
LION PICTURE FRAMING,82.95,5085,Equipment - Purchase,05/04/2022,Black Country Beats
NATWEST BANK,60.00,6011,Client Allowances,05/04/2022,LAC Transitions Team
INST OF LIC,300.00,8398,Subscriptions,05/04/2022,Private Hire Vehicles
INST OF LIC,315.00,8398,Subscriptions,05/04/2022,Private Hire Vehicles
CUMMINGS BROTHERS LOCK,16.67,7399,Equipment - R & M,05/04/2022,Caretakers Community Centre
PAYPAL  UKPOOLSTORE,63.96,5996,,05/04/2022,Bert Williams Leisure Centre
PAYPAL  UKPOOLSTORE,63.96,5996,,05/04/2022,Bert Williams Leisure Centre
PAYPAL  OFFICEDEPOT,57.59,7399,,05/04/2022,Bert Williams Leisure Centre
PAYPAL  BOXFITUKLIM,928.92,5941,,05/04/2022,Bert Williams Leisure Centre
BRITISH HEART FOUNDATI,191.67,8398,Client Allowances,05/04/2022,LAC Transitions Team
LIDL GB WALSALL,8.06,5411,Client Allowances,05/04/2022,LAC Transitions Team
CardtronicsUK,200.00,6011,Events,05/04/2022,Communications & Marketing - General
Trainline.COM,198.76,4112,,05/04/2022,Executive Director of Families
thetrainline.com,71.28,4112,,05/04/2022,Executive Director of Families
DUNELM (SOFT FURNISHIN,13.33,5714,Client Allowances,05/04/2022,LAC Transitions Accommodation
TALBOTS LAW LTD,240.00,8111,Professional fees,05/04/2022,CIN/CP Social Work Unit - Area 8
AMZNMktplace,24.46,5999,,05/04/2022,Blakenhall Commty & Healthy Living Ctr
STAR LEGAL LTD,300.00,8111,Section 17,05/04/2022,CIN/CP Social Work Unit - Area 8
DOCTOR AIR BRAKE,115.92,5533,,05/04/2022,Fleet Management
ARRIVA UK BUS,4.60,4131,Section 17,05/04/2022,Court Team
Trainline.COM,12.13,4112,Section 17,05/04/2022,Court Team
thetrainline.com,103.07,4112,Public Transport,05/04/2022,Members Expenses
Vue Entertainment Ltd,13.98,7832,Financial Assistance In Exceptional Circ,04/04/2022,Lac Transitions
BENTLEY BRIDGE WAY SPO,65.98,5941,,04/04/2022,EIP Locality 8
BOOKER LIMITED WOLVERH,22.18,5811,,04/04/2022,EIP Locality 8
ASDA SUPERSTORE,28.52,5411,,04/04/2022,EIP Locality 8
SMYTHS TOYS WOLVERHAMP,17.94,5945,,04/04/2022,EIP Locality 8
A2BGoCarz,288.40,4121,Client Transport,04/04/2022,Looked After Team 2
A2BGoCarz,24.00,4121,Client Transport,04/04/2022,Corporate Parenting
A2BGoCarz,16.80,4121,Client Transport,04/04/2022,Corporate Parenting
FLOORING,136.77,5713,Client Allowances,04/04/2022,LAC Transitions Team
ARGOS LTD,56.00,5310,Client Allowances,04/04/2022,LAC Transitions Team
Santander,150.00,6011,Client Allowances,04/04/2022,LAC Transitions Accommodation
AMZNMktplace,58.55,5999,Equipment - Purchase,04/04/2022,Ernest Bold Court
B&M 497 - HS WOLVES,13.79,5399,,04/04/2022,EIP Locality 8
AMZNMktplace,16.98,5999,Client Allowances,04/04/2022,LAC Transitions Team
A2BGoCarz,6.80,4121,Direct Work With Children,04/04/2022,Power2 Team
A2BGoCarz,6.80,4121,Direct Work With Children,04/04/2022,Power2 Team
AMZNMKTPLACE AMAZON.CO,17.50,5999,Equipment - Purchase,04/04/2022,Telecare
ARGOS LTD,104.13,5310,Equipment - Purchase,04/04/2022,EIP Locality 2
A2BGoCarz,240.00,4121,Section 17,04/04/2022,CIN/CP Social Work Unit - Area 1
A2BGoCarz,240.00,4121,Section 17,04/04/2022,CIN/CP Social Work Unit - Area 1
A2BGoCarz,5.20,4121,Direct Work With Children,04/04/2022,Power2 Team
A2BGoCarz,6.50,4121,Direct Work With Children,04/04/2022,Power2 Team
A2BGoCarz,7.20,4121,Direct Work With Children,04/04/2022,Power2 Team
A2BGoCarz,18.00,4121,Section 17,04/04/2022,CIN/CP Social Work Unit - Area 1
WICKES WOLVERHAMPTON,16.25,5211,Equipment - Purchase,04/04/2022,Community Pathways
AMZNMKTPLACE AMAZON.CO,22.64,5999,Equipment - Purchase,04/04/2022,EIP Locality 8
A2BGoCarz,6.80,4121,Direct Work With Children,04/04/2022,Power2 Team
A2BGoCarz,7.20,4121,Direct Work With Children,04/04/2022,Power2 Team
A2BGoCarz,6.80,4121,Direct Work With Children,04/04/2022,Power2 Team
A2BGoCarz,6.50,4121,Direct Work With Children,04/04/2022,Power2 Team
B & Q 1243,23.33,5200,Equipment - R & M,04/04/2022,Ernest Bold Court
B & Q 1243,30.37,5200,Equipment - Purchase,04/04/2022,Learning Disabilities Management
BRITANNIA CARPETS,450.00,5713,Furniture,04/04/2022,EIP Locality 2
BRITANNIA CARPETS,450.00,5713,Furniture,04/04/2022,EIP Locality 2
A2BGoCarz,8.50,4121,Direct Work With Children,04/04/2022,Power2 Team
A2BGoCarz,7.20,4121,Direct Work With Children,04/04/2022,Power2 Team
A2BGoCarz,6.80,4121,Direct Work With Children,04/04/2022,Power2 Team
BRITANNIA CARPETS,450.00,5713,Furniture,04/04/2022,EIP Locality 2
ASDA GROCERIES ONLINE,-14.05,5411,Provisions (Not for resale),04/04/2022,Duke Street Bungalows
ASDA GROCERIES ONLINE,249.29,5411,Provisions (Not for resale),04/04/2022,Duke Street Bungalows
DUNELM (SOFT FURNISHIN,5.60,5714,Client Allowances,04/04/2022,LAC Transitions Team
ARGOS LTD,9.07,5310,Client Allowances,04/04/2022,LAC Transitions Accommodation
ARGOS LTD,-23.33,5310,Client Allowances,04/04/2022,LAC Transitions Accommodation
ARGOS LTD,23.33,5310,Client Allowances,04/04/2022,LAC Transitions Accommodation
POST OFFICE,100.00,6011,Independant Living Allowance,04/04/2022,LAC Transitions Team
4EV.CO.UK,249.99,5399,Equipment - Purchase,04/04/2022,Commercial Waste Collection
thetrainline.com,123.35,4112,Client Transport,04/04/2022,CIN/CP Social Work Unit - Area 8
COMBINED COURT,183.00,9222,Section 17,04/04/2022,Court Team
TFM FARM   COUNTRY,119.94,0763,Materials,04/04/2022,Northicote Farm
TFM FARM   COUNTRY,17.87,0763,Materials,04/04/2022,Northicote Farm
NoteMachine ATM,30.00,6011,Independant Living Allowance,04/04/2022,LAC Transitions Team
AMZNMktplace,19.99,5999,Direct Work With Children,04/04/2022,LAC Transitions Team
AMZNMKTPLACE AMAZON.CO,12.74,5999,Direct Work With Children,04/04/2022,LAC Transitions Team
INDEED TEL+35312545907,98.35,7399,,04/04/2022,Strategic ICTS (ICT Serv Budget)
WILKO RETAIL LIMITED,12.00,5399,Equipment - Purchase,04/04/2022,Bradley Resource Centre
AMZNMKTPLACE AMAZON.CO,229.59,5999,Equipment - Purchase,04/04/2022,Art Gallery
AMZNMKTPLACE AMAZON.CO,255.10,5999,Equipment - Purchase,04/04/2022,Art Gallery
POUNDSTRETCHER,22.47,5331,Client Allowances,04/04/2022,LAC Transitions Team
BRISTOW AND SUTOR,.00,7399,VAT,04/04/2022,Revenues
NUCO TECHNOLOGIES,12.98,7372,Computing - Purchase of Software,04/04/2022,Technical Support
AMZNMktplace,19.50,5999,Client Allowances,04/04/2022,LAC Transitions Team
AMZNMktplace,29.25,5999,Client Allowances,04/04/2022,LAC Transitions Team
AMZNMktplace,22.49,5999,Client Allowances,04/04/2022,LAC Transitions Team
AMZNMktplace,9.75,5999,Client Allowances,04/04/2022,LAC Transitions Team
AMZNMktplace,19.98,5999,Client Allowances,04/04/2022,LAC Transitions Team
AMZNMktplace,48.70,5999,Client Allowances,04/04/2022,LAC Transitions Team
AMZNMktplace,9.32,5999,Client Allowances,04/04/2022,LAC Transitions Team
CITIZENCARD,20.83,8699,Client Allowances,04/04/2022,LAC Transitions Team
MATALAN.CO.UK,33.29,5691,Client Allowances,04/04/2022,LAC Transitions Team
AMZNMktplace,3.00,5999,Client Allowances,04/04/2022,LAC Transitions Team
GOOGLE  YouTubePremium,11.99,7829,,04/04/2022,Regional Adoption Agency
PREMIER INN,74.00,3811,,04/04/2022,Regional Adoption Agency
PREMIER INN,133.00,3811,,04/04/2022,Regional Adoption Agency
PREMIER INN,99.50,3811,,04/04/2022,Regional Adoption Agency
Amazon.co.uk 290RZ7VB4,15.73,5969,,04/04/2022,Regional Adoption Agency
POSTURITE LTD,32.40,5719,,04/04/2022,Regional Adoption Agency
CO-OP LATE SHOP,4.58,5411,Client Allowances,04/04/2022,LAC Transitions Team
POUNDLAND LTD 1463,8.70,5310,,04/04/2022,Hashtag Youth Engagement Strategy
thetrainline.com,11.51,4112,,04/04/2022,Digital Inclusion
clearcheck.co.uk,8.33,8999,Client Allowances,04/04/2022,LAC Transitions Team
clearcheck.co.uk,57.08,8999,Client Allowances,04/04/2022,LAC Transitions Team
A2BGoCarz,13.20,4121,Client Transport,04/04/2022,LAC Team
WWW.SCREWFIX.COM,196.96,5211,Materials,04/04/2022,Ward Fund - Bushbury North
A2BGoCarz,290.00,4121,Client Transport,04/04/2022,Court Team
A2BGoCarz,80.50,4121,Client Transport,04/04/2022,Looked After Team 2
A2BGoCarz,600.00,4121,Client Transport,04/04/2022,LAC Team
NETFLIX.COM,13.99,4899,Subscriptions,04/04/2022,Upper Pendeford Farm Childrens Home
ASDA GROCERIES ONLINE,63.34,5411,Provisions (Not for resale),04/04/2022,Upper Pendeford Farm Childrens Home
AMZNMktplace,89.38,5999,Stationery,04/04/2022,Upper Pendeford Farm Childrens Home
